bitfinex/quotes_SOLUSD_20220103
["timestamp","ask_amount","ask_price","bid_price","bid_amount"]
[1641240768676,8.8352,169.83,169.76,12.11222757]
[1641240770983,9.3352,169.83,169.76,12.11222757]
[1641240771182,8.8352,169.83,169.76,8.8353]
[1641240771386,9.5952,169.83,169.75,8.836]
[1641240771581,9.5952,169.83,169.73,1.3267]
[1641240771782,22.6526,169.82,169.7,8.4]
[1641240771984,24.659,169.82,169.68,8.4]
[1641240772183,24.659,169.82,169.69,2.9223809]
[1641240772582,24.659,169.82,169.69,25.73563597]
[1641240773084,24.659,169.82,169.7,8.8382]
[1641240773085,8.8386,169.77,169.7,8.8382]
[1641240773482,9.5986,169.77,169.7,9.0982]
[1641240773883,9.5986,169.77,169.69,22.81325507]
[1641240774687,9.5986,169.77,169.69,31.65215507]
[1641240775100,9.5986,169.77,169.65,73.2254]
[1641240775287,22.7622,169.76,169.65,73.2254]
[1641240775487,8.8417,169.71,169.62,25.2528]
[1641240775686,8.8417,169.71,169.61,8.4]
[1641240775889,9.3417,169.71,169.63,8.8415]
[1641240776087,9.6017,169.71,169.64,26.31218824]
[1641240776687,9.6017,169.71,169.64,23.65615311]
[1641240776889,9.6017,169.71,169.61,8.4]
[1641240777094,8.8432,169.68,169.61,8.4]
[1641240777686,0.5,169.68,169.62,2.76513442]
[1641240777886,0.5,169.68,169.62,26.3053872]
[1641240778089,0.5,169.68,169.62,26.5653872]
[1641240778288,2.0031,169.7,169.62,26.5653872]
[1641240778490,8.8426,169.69,169.62,35.4076872]
[1641240778688,1.2431,169.7,169.62,35.4076872]
[1641240778890,11.59579269,169.78,169.62,43.8076872]
[1641240779090,2.93820641,169.74,169.62,43.8076872]
[1641240779889,3.43820641,169.74,169.62,43.8076872]
[1641240780093,1.7887,169.74,169.62,43.8076872]
[1641240780289,23.8663,169.73,169.62,43.8076872]
[1641240781694,24.3663,169.73,169.62,43.8076872]
[1641240782297,33.2068,169.73,169.62,43.8076872]
[1641240782694,1.2727,169.72,169.62,43.8076872]
[1641240782894,1.7727,169.72,169.62,43.8076872]
[1641240783093,2.0327,169.72,169.62,43.8076872]
[1641240783295,2.0327,169.72,169.62,43.5476872]
[1641240783496,10.8739,169.72,169.62,34.7053872]
[1641240783898,10.1139,169.72,169.62,34.7053872]
[1641240784499,10.1139,169.72,169.62,34.9653872]
[1641240784801,10.6139,169.72,169.62,34.9653872]
[1641240785824,10.6139,169.72,169.62,43.8074872]
[1641240786725,10.3739,169.72,169.62,43.8074872]
[1641240786925,10.8739,169.72,169.62,43.8074872]
[1641240787125,10.3739,169.72,169.62,43.8074872]
[1641240787427,10.8739,169.72,169.62,43.8074872]
[1641240787625,10.1139,169.72,169.62,43.8074872]
[1641240787827,1.7727,169.72,169.62,43.8074872]
[1641240788127,1.2727,169.72,169.62,43.8074872]
[1641240788527,1.7727,169.72,169.62,43.8074872]
[1641240788728,1.2727,169.72,169.62,43.8074872]
[1641240789227,1.7727,169.72,169.62,43.8074872]
[1641240789627,10.8737,169.72,169.62,43.8074872]
[1641240790627,10.1137,169.72,169.62,43.8074872]
[1641240790826,10.6137,169.72,169.62,43.8074872]
[1641240791227,24.7569,169.71,169.62,43.8074872]
[1641240791428,25.2569,169.71,169.62,43.8074872]
[1641240793434,24.7569,169.71,169.62,43.8074872]
[1641240794033,24.7569,169.71,169.62,43.5474872]
[1641240795331,24.7569,169.71,169.62,43.8074872]
[1641240796132,10.1137,169.72,169.62,43.8074872]
[1641240796834,22.7106,169.71,169.62,43.8074872]
[1641240799239,1.2727,169.72,169.62,43.8074872]
[1641240799837,85.4639,169.79,169.62,43.8074872]
[1641240800048,1.3056,169.77,169.69,8.8388]
[1641240800241,1.3056,169.77,169.7,27.51428718]
[1641240800438,1.8056,169.77,169.7,27.51428718]
[1641240800638,8.8393,169.76,169.7,27.51428718]
[1641240800840,9.3393,169.76,169.7,27.51428718]
[1641240801640,9.5993,169.76,169.7,27.51428718]
[1641240803141,9.3393,169.76,169.7,27.51428718]
[1641240803544,9.3393,169.76,169.7,27.77428718]
[1641240808549,9.3393,169.76,169.7,27.51428718]
[1641240809150,9.3393,169.76,169.67,2.31049397]
[1641240809951,25.8253,169.75,169.67,2.57049397]
[1641240810151,25.8253,169.75,169.67,30.2622617]
[1641240810353,26.3253,169.75,169.67,30.2622617]
[1641240810653,26.3253,169.75,169.67,39.1017617]
[1641240812652,35.1645,169.75,169.67,39.1017617]
[1641240813052,34.6645,169.75,169.67,39.1017617]
[1641240813256,35.1645,169.75,169.67,39.1017617]
[1641240813653,34.6645,169.75,169.67,39.1017617]
[1641240813952,25.8253,169.75,169.67,39.1017617]
[1641240814652,25.8253,169.75,169.67,47.5017617]
[1641240817759,8.8383,169.77,169.67,47.5017617]
[1641240818362,9.3383,169.77,169.67,47.5017617]
[1641240818559,8.8383,169.77,169.67,47.5017617]
[1641240818785,24.4313,169.76,169.67,47.5017617]
[1641240818964,24.6913,169.76,169.67,17.2395]
[1641240819163,1.2577,169.75,169.66,8.8404]
[1641240819364,1.7577,169.75,169.66,8.8404]
[1641240819563,2.0177,169.75,169.66,8.8404]
[1641240820164,2.0177,169.75,169.67,2.83682359]
[1641240820564,2.0177,169.75,169.67,3.09682359]
[1641240820764,8.8402,169.73,169.67,3.09682359]
[1641240823968,8.8402,169.73,169.66,8.8404]
[1641240824174,8.8402,169.73,169.6,29.4698]
[1641240824377,22.5034,169.72,169.61,22.7354]
[1641240824575,8.8424,169.69,169.61,22.7354]
[1641240824975,9.1024,169.69,169.62,39.85158227]
[1641240825177,9.1024,169.69,169.63,2.26120232]
[1641240825576,9.1024,169.69,169.63,2.52120232]
[1641240825979,9.6024,169.69,169.63,2.52120232]
[1641240826400,9.1024,169.69,169.63,2.26120232]
[1641240828010,9.1024,169.69,169.63,2.52120232]
[1641240828202,8.8419,169.7,169.63,2.52120232]
[1641240828402,1.3138,169.71,169.63,2.52120232]
[1641240829303,8.8404,169.73,169.63,11.36310232]
[1641240830105,9.3404,169.73,169.63,11.36310232]
[1641240830507,32.2068,169.72,169.63,11.36310232]
[1641240830706,33.4424,169.72,169.63,11.10310232]
[1641240831306,33.9424,169.72,169.63,11.10310232]
[1641240832007,33.9424,169.72,169.63,11.36310232]
[1641240832409,34.2024,169.72,169.63,11.36310232]
[1641240834610,34.2024,169.72,169.63,9.1019]
[1641240834811,34.2024,169.72,169.63,0.26]
[1641240835010,34.2024,169.72,169.62,8.8425]
[1641240835212,34.2024,169.72,169.57,84.4428]
[1641240835411,42.6024,169.72,169.56,93.7]
[1641240835612,42.6024,169.72,169.57,2.18617926]
[1641240836112,1.64950641,169.71,169.57,30.48926995]
[1641240836514,8.8455,169.64,169.57,30.48926995]
[1641240836912,9.1055,169.64,169.57,30.48926995]
[1641240837111,8.8455,169.64,169.57,30.48926995]
[1641240837543,1.328,169.66,169.57,30.48926995]
[1641240837716,1.588,169.66,169.57,39.33386995]
[1641240837913,1.328,169.66,169.57,39.59386995]
[1641240839113,1.588,169.66,169.57,39.59386995]
[1641240840717,1.588,169.66,169.57,39.33386995]
[1641240840919,10.4321,169.66,169.57,39.33386995]
[1641240841117,10.9321,169.66,169.57,30.48926995]
[1641240841323,23.6719,169.65,169.57,30.48926995]
[1641240841524,23.9319,169.65,169.57,30.48926995]
[1641240842022,32.5168,169.65,169.57,30.74926995]
[1641240843626,32.7768,169.65,169.57,39.59386995]
[1641240847752,32.5168,169.65,169.57,39.59386995]
[1641240848450,24.1719,169.65,169.57,39.59386995]
[1641240848650,23.6719,169.65,169.57,39.59386995]
[1641240850955,24.1719,169.65,169.57,39.59386995]
[1641240851154,23.6719,169.65,169.57,39.59386995]
[1641240851352,23.9319,169.65,169.57,39.59386995]
[1641240851754,32.5165,169.65,169.57,39.59386995]
[1641240851958,32.7765,169.65,169.57,39.59386995]
[1641240852156,23.6719,169.65,169.57,39.59386995]
[1641240853155,1.64950641,169.71,169.57,47.99386995]
[1641240853358,1.64950641,169.71,169.58,23.0478]
[1641240853555,1.64950641,169.71,169.65,27.50331077]
[1641240853958,1.64950641,169.71,169.65,27.76331077]
[1641240854260,31.9138,169.72,169.65,27.76331077]
[1641240854858,1.64950641,169.76,169.65,27.76331077]
[1641240855060,1.64950641,169.76,169.65,36.60391077]
[1641240855259,1.64950641,169.76,169.65,45.00391077]
[1641240856057,33.67790641,169.79,169.65,45.00391077]
[1641240857256,32.0284,169.79,169.65,45.00391077]
[1641240857959,32.7884,169.79,169.65,45.00391077]
[1641240858758,32.0284,169.79,169.65,45.00391077]
[1641240858959,32.2884,169.79,169.65,45.00391077]
[1641240859360,34.0804,169.79,169.65,45.00391077]
[1641240859760,33.5804,169.79,169.65,45.00391077]
[1641240860561,35.22990641,169.79,169.65,45.00391077]
[1641240860763,35.72990641,169.79,169.65,45.00391077]
[1641240861163,35.22990641,169.79,169.65,45.00391077]
[1641240861364,35.72990641,169.79,169.65,45.00391077]
[1641240861963,34.0804,169.79,169.65,45.00391077]
[1641240862367,33.5804,169.79,169.65,45.00391077]
[1641240867372,35.22990641,169.79,169.65,45.00391077]
[1641240867972,35.72990641,169.79,169.65,45.00391077]
[1641240868172,35.22990641,169.79,169.65,45.00391077]
[1641240869474,35.72990641,169.79,169.65,44.95870239]
[1641240869674,34.0804,169.79,169.65,44.95870239]
[1641240870375,33.5804,169.79,169.65,44.95870239]
[1641240871499,34.0804,169.79,169.65,44.95870239]
[1641240872301,34.0804,169.79,169.65,68.84570239]
[1641240872603,33.5804,169.79,169.65,68.84570239]
[1641240873503,35.22990641,169.79,169.65,68.84570239]
[1641240876006,34.96990641,169.79,169.65,68.84570239]
[1641240876206,34.96990641,169.79,169.65,74.73470239]
[1641240876606,26.13260641,169.79,169.65,76.16139607]
[1641240876806,1.64950641,169.8,169.65,76.16139607]
[1641240877307,1.64950641,169.8,169.66,105.01]
[1641240877506,1.64950641,169.8,169.74,27.30921162]
[1641240878007,102.5378,169.81,169.74,27.56921162]
[1641240878709,102.5378,169.81,169.76,8.8349]
[1641240878909,1.324,169.81,169.76,8.8349]
[1641240879106,1.324,169.81,169.76,9.0949]
[1641240879507,24.969,169.82,169.76,9.0949]
[1641240879707,10.48470641,169.83,169.76,9.0949]
[1641240879906,1.64950641,169.83,169.76,9.0949]
[1641240880510,1.64950641,169.83,169.74,36.14491162]
[1641240880707,2.14950641,169.83,169.74,36.14491162]
[1641240881108,11.24480641,169.83,169.74,27.30921162]
[1641240881307,11.24480641,169.83,169.74,24.56815025]
[1641240881706,11.24480641,169.83,169.73,8.4]
[1641240881907,11.24480641,169.83,169.73,0.26]
[1641240882107,8.838,169.78,169.7,8.66]
[1641240882308,8.838,169.78,169.7,11.10644005]
[1641240882708,8.838,169.78,169.71,31.57933342]
[1641240882910,24.9153,169.8,169.71,40.41673342]
[1641240883111,26.4308,169.8,169.71,40.67673342]
[1641240883511,26.9308,169.8,169.71,40.67673342]
[1641240883709,8.8374,169.79,169.71,40.67673342]
[1641240885911,26.1708,169.8,169.71,40.67673342]
[1641240887210,35.0076,169.8,169.71,40.67673342]
[1641240888412,35.5076,169.8,169.71,40.67673342]
[1641240890915,35.0076,169.8,169.71,40.67673342]
[1641240892217,35.0076,169.8,169.71,40.41673342]
[1641240892816,35.2676,169.8,169.71,40.41673342]
[1641240893116,37.15710641,169.8,169.71,40.41673342]
[1641240893516,37.15710641,169.8,169.71,40.67673342]
[1641240894516,35.5076,169.8,169.71,40.67673342]
[1641240895018,35.0076,169.8,169.71,40.67673342]
[1641240896320,35.5076,169.8,169.71,40.67673342]
[1641240896525,35.7676,169.8,169.71,40.67673342]
[1641240897622,37.41710641,169.8,169.71,40.67673342]
[1641240898425,37.15710641,169.8,169.71,40.67673342]
[1641240898823,36.65710641,169.8,169.71,40.67673342]
[1641240899924,37.15710641,169.8,169.71,40.67673342]
[1641240900726,36.65710641,169.8,169.71,40.67673342]
[1641240902929,35.0076,169.8,169.71,40.67673342]
[1641240903328,26.1708,169.8,169.71,40.67673342]
[1641240904828,25.6708,169.8,169.71,49.07673342]
[1641240910035,34.5073,169.8,169.71,48.81673342]
[1641240910335,35.0073,169.8,169.71,48.81673342]
[1641240910535,34.5073,169.8,169.71,48.81673342]
[1641240910936,35.2673,169.8,169.71,40.41673342]
[1641240911740,35.2673,169.8,169.71,40.67673342]
[1641240912340,35.0073,169.8,169.71,40.67673342]
[1641240912562,36.65680641,169.8,169.71,40.67673342]
[1641240913264,36.91680641,169.8,169.71,40.67673342]
[1641240913665,36.91680641,169.8,169.71,31.57933342]
[1641240914271,1.64950641,169.79,169.71,31.57933342]
[1641240914466,8.8384,169.77,169.71,31.57933342]
[1641240915067,8.8384,169.77,169.71,31.83933342]
[1641240915467,11.82980641,169.78,169.71,40.67703342]
[1641240915869,10.1803,169.78,169.71,40.67703342]
[1641240916068,10.1803,169.78,169.71,31.83933342]
[1641240916873,10.6803,169.78,169.71,31.83933342]
[1641240917470,10.6803,169.78,169.71,0.26]
[1641240917673,32.2886,169.77,169.67,9.6279]
[1641240917875,32.7886,169.77,169.63,103.0639]
[1641240918175,33.0486,169.77,169.63,111.4639]
[1641240918575,1.2481,169.76,169.64,26.15741387]
[1641240918776,8.8403,169.73,169.66,8.8401]
[1641240919478,8.3403,169.73,169.66,8.8401]
[1641240919974,8.3403,169.73,169.66,9.1001]
[1641240920676,8.8397,169.74,169.66,9.1001]
[1641240921479,2.89760641,169.76,169.66,9.1001]
[1641240921679,2.89760641,169.76,169.67,8.4]
[1641240921878,2.89760641,169.76,169.68,29.22304244]
[1641240922084,2.89760641,169.76,169.68,29.48304244]
[1641240922280,1.2481,169.76,169.68,29.48304244]
[1641240923080,1.2481,169.76,169.73,30.32876054]
[1641240923281,23.4501,169.77,169.74,6.06439992]
[1641240923480,23.4501,169.77,169.74,6.32439992]
[1641240926983,10.1621,169.79,169.74,6.32439992]
[1641240928387,10.1621,169.79,169.74,6.06439992]
[1641240928784,10.6621,169.79,169.74,6.06439992]
[1641240928984,10.4221,169.79,169.74,6.06439992]
[1641240929387,12.07160641,169.79,169.74,6.06439992]
[1641240929586,11.81160641,169.79,169.74,6.06439992]
[1641240929789,11.81160641,169.79,169.74,6.32439992]
[1641240930187,11.81160641,169.79,169.74,6.06439992]
[1641240932689,2.97450641,169.79,169.74,6.06439992]
[1641240932890,2.97450641,169.79,169.74,6.32439992]
[1641240933290,1.325,169.79,169.74,6.32439992]
[1641240935495,1.325,169.79,169.74,15.16069992]
[1641240937194,8.8369,169.8,169.74,15.16069992]
[1641240940028,8.8369,169.8,169.74,6.32439992]
[1641240941723,9.3369,169.8,169.74,6.32439992]
[1641240941924,8.8369,169.8,169.74,6.32439992]
[1641240942323,9.3369,169.8,169.74,6.32439992]
[1641240942526,2.97490641,169.81,169.74,15.16069992]
[1641240942824,1.64950641,169.81,169.74,15.16069992]
[1641240943127,1.64950641,169.83,169.74,23.56069992]
[1641240943926,1.64950641,169.84,169.74,23.56069992]
[1641240944126,1.64950641,169.84,169.74,47.84989992]
[1641240944626,24.1357,169.87,169.74,47.84989992]
[1641240944827,25.9309,169.87,169.75,1.2819]
[1641240945028,8.835,169.84,169.75,1.5419]
[1641240946327,9.335,169.84,169.76,8.835]
[1641240946531,9.335,169.84,169.77,30.30163872]
[1641240946931,10.98450641,169.84,169.77,30.56163872]
[1641240947135,10.48450641,169.84,169.77,32.99083917]
[1641240948034,10.48450641,169.84,169.77,30.56163872]
[1641240948433,8.835,169.84,169.77,30.56163872]
[1641240949233,10.98450641,169.84,169.77,30.56163872]
[1641240949734,10.48450641,169.84,169.77,30.56163872]
[1641240949933,8.835,169.84,169.77,30.56163872]
[1641240951134,10.48450641,169.84,169.77,30.56163872]
[1641240951333,10.98450641,169.84,169.77,30.56163872]
[1641240951633,10.48450641,169.84,169.77,30.56163872]
[1641240951834,10.98450641,169.84,169.77,30.56163872]
[1641240952235,9.335,169.84,169.77,30.56163872]
[1641240952433,9.335,169.84,169.77,30.30163872]
[1641240953035,10.48450641,169.84,169.77,30.30163872]
[1641240953236,10.98450641,169.84,169.77,30.30163872]
[1641240953434,10.48450641,169.84,169.77,30.30163872]
[1641240953835,10.48500641,169.83,169.77,30.56163872]
[1641240954940,11.81840641,169.83,169.77,30.56163872]
[1641240957239,10.48500641,169.83,169.77,30.56163872]
[1641240957439,1.64950641,169.83,169.77,30.56163872]
[1641240958244,1.64950641,169.85,169.77,30.56163872]
[1641240958446,2.14950641,169.85,169.77,30.56163872]
[1641240958846,2.14950641,169.85,169.77,39.39563872]
[1641240961948,2.14950641,169.85,169.77,47.79563872]
[1641240962747,1.64950641,169.85,169.77,47.79563872]
[1641240964051,1.64950641,169.85,169.77,152.80563872]
[1641240964250,1.64950641,169.85,169.77,154.2323324]
[1641240964652,337.42536242,169.93,169.77,154.2323324]
[1641240964851,337.42536242,169.93,169.78,23.3641]
[1641240965075,337.42536242,169.93,169.86,29.18974132]
[1641240965270,1.64950641,169.93,169.86,29.18974132]
[1641240965471,1.64950641,169.94,169.86,29.44974132]
[1641240966271,1.64950641,169.94,169.86,37.84974132]
[1641240967070,1.64950641,169.94,169.89,8.828]
[1641240967472,1.64950641,169.94,169.89,9.088]
[1641240967673,1.64950641,169.95,169.89,9.088]
[1641240968974,1.64950641,169.95,169.9,29.55112946]
[1641240969376,1.64950641,169.95,169.9,29.81112946]
[1641240969774,1.64950641,169.95,169.9,38.63842946]
[1641240970177,1.64950641,169.95,169.9,0.26]
[1641240970378,1.64950641,169.95,169.86,11.04720308]
[1641240970778,1.64950641,169.95,169.88,8.8282]
[1641240970975,34.9153,169.96,169.88,9.0882]
[1641240971377,35.4153,169.96,169.88,9.0882]
[1641240971577,34.9153,169.96,169.88,9.0882]
[1641240972176,26.0869,169.96,169.88,9.0882]
[1641240972881,26.5869,169.96,169.87,8.829]
[1641240973082,26.8469,169.96,169.86,8.4]
[1641240973582,35.6753,169.96,169.86,8.4]
[1641240973780,35.6753,169.96,169.86,10.73319433]
[1641240973981,35.6753,169.96,169.86,10.99319433]
[1641240974181,1.64950641,169.94,169.86,10.99319433]
[1641240974382,2.14950641,169.94,169.86,10.99319433]
[1641240975183,8.8299,169.93,169.86,10.99319433]
[1641240975384,1.64950641,169.94,169.86,19.82279433]
[1641240976184,1.34950641,169.94,169.86,19.82279433]
[1641240976684,10.17880641,169.94,169.86,19.82279433]
[1641240977384,10.67880641,169.94,169.86,19.82279433]
[1641240977884,10.17880641,169.94,169.86,19.82279433]
[1641240978388,1.34950641,169.94,169.86,19.82279433]
[1641240979087,24.8305,169.96,169.86,17.2296]
[1641240979289,1.8292,169.94,169.82,8.4]
[1641240979689,1.8292,169.94,169.8,1.285]
[1641240980093,1.8292,169.94,169.81,2.6118401]
[1641240980290,1.8292,169.94,169.81,35.32088657]
[1641240980493,1.8292,169.94,169.81,35.58088657]
[1641240980691,7.97510277,169.94,169.81,35.58088657]
[1641240980894,24.4133,169.93,169.81,35.58088657]
[1641240981295,24.9133,169.93,169.81,35.58088657]
[1641240981495,25.1733,169.93,169.81,35.58088657]
[1641240981895,8.8318,169.9,169.81,35.58088657]
[1641240982296,9.3318,169.9,169.81,35.58088657]
[1641240983298,10.1589,169.89,169.81,35.58088657]
[1641240983697,10.1589,169.89,169.81,2.6118401]
[1641240983898,34.8377,169.89,169.81,2.6118401]
[1641240984096,34.8377,169.89,169.8,24.8073]
[1641240984296,34.8377,169.89,169.79,8.4]
[1641240984499,40.6917,169.89,169.75,8.4]
[1641240985098,40.6917,169.89,169.77,2.84856717]
[1641240986399,40.6917,169.89,169.75,8.4]
[1641240986601,49.0917,169.89,169.73,8.4]
[1641240986799,49.0917,169.89,169.71,8.4]
[1641240987003,1.42669368,169.88,169.68,8.4]
[1641240987203,8.838,169.78,169.68,8.4]
[1641240987402,9.338,169.78,169.69,2.81132826]
[1641240987800,9.338,169.78,169.68,8.4]
[1641240988002,9.598,169.78,169.68,8.4]
[1641240988804,9.598,169.78,169.69,2.97951599]
[1641240989201,9.338,169.78,169.69,3.23951599]
[1641240993228,8.838,169.78,169.69,3.23951599]
[1641240994635,8.838,169.78,169.69,12.07721599]
[1641240995037,8.838,169.78,169.69,3.23951599]
[1641240995235,9.338,169.78,169.69,3.23951599]
[1641240995836,25.5944,169.79,169.69,3.23951599]
[1641240996035,34.4319,169.79,169.69,3.23951599]
[1641240996236,34.4319,169.79,169.69,11.63951599]
[1641240996436,34.4319,169.79,169.7,23.66451825]
[1641240996835,34.4319,169.79,169.7,23.92451825]
[1641240998840,34.9319,169.79,169.7,23.92451825]
[1641241000941,34.9319,169.79,169.7,0.26]
[1641241000942,35.1919,169.79,169.7,0.26]
[1641241001147,34.9319,169.79,169.69,3.23951599]
[1641241002847,35.1919,169.79,169.69,3.23951599]
[1641241006253,35.1919,169.79,169.67,79.2277]
[1641241006450,35.1919,169.79,169.68,0.26]
[1641241007051,35.1919,169.79,169.68,28.6632495]
[1641241007252,35.1919,169.79,169.68,31.06846144]
[1641241007454,35.1919,169.79,169.68,31.32846144]
[1641241008551,34.4319,169.79,169.68,31.32846144]
[1641241008751,34.4319,169.79,169.68,40.16676144]
[1641241008952,34.4319,169.79,169.69,8.4]
[1641241009356,34.4319,169.79,169.69,8.66]
[1641241010582,34.4319,169.79,169.69,17.4975]
[1641241011183,34.9319,169.79,169.69,17.4975]
[1641241012084,34.4319,169.79,169.69,17.4975]
[1641241017888,34.4319,169.79,169.69,17.2375]
[1641241018291,35.1919,169.79,169.69,17.2375]
[1641241018690,34.9319,169.79,169.69,17.2375]
[1641241018889,35.1919,169.79,169.69,17.2375]
[1641241019093,35.1919,169.79,169.68,31.06846144]
[1641241019291,35.1919,169.79,169.68,2.40521194]
[1641241019494,35.1919,169.79,169.66,8.4]
[1641241020394,35.1919,169.79,169.67,28.34473944]
[1641241020592,35.1919,169.79,169.67,31.15439363]
[1641241021095,35.1919,169.79,169.67,31.41439363]
[1641241021596,35.1919,169.79,169.67,40.25339363]
[1641241026600,35.1919,169.79,169.67,39.99339363]
[1641241026800,8.8394,169.75,169.67,39.99339363]
[1641241028003,8.8394,169.75,169.67,40.25339363]
[1641241033105,8.8394,169.75,169.67,31.15439363]
[1641241033304,9.3394,169.75,169.67,31.15439363]
[1641241033506,9.3394,169.75,169.67,2.80965419]
[1641241034004,9.3394,169.75,169.66,8.8397]
[1641241034208,9.3394,169.75,169.63,79.8892]
[1641241034209,16.9654,169.75,169.63,79.8892]
[1641241034408,8.8425,169.69,169.59,8.4]
[1641241034606,8.8425,169.69,169.58,25.13520376]
[1641241034805,9.3425,169.69,169.58,25.13520376]
[1641241035211,9.3425,169.69,169.59,2.6619391]
[1641241035508,1.3578,169.68,169.58,1.2526]
[1641241035910,26.6921,169.68,169.58,1.2526]
[1641241036341,26.6921,169.68,169.57,29.08003529]
[1641241036511,26.6921,169.68,169.56,127.0228]
[1641241036711,26.6921,169.68,169.57,2.81601393]
[1641241037611,8.8455,169.63,169.57,30.13057166]
[1641241037818,8.8455,169.63,169.57,30.39057166]
[1641241038413,8.8455,169.63,169.57,3.07601393]
[1641241039414,8.8455,169.63,169.57,0.26]
[1641241039615,9.1055,169.63,169.54,8.4]
[1641241039818,17.2045,169.63,169.53,23.9117]
[1641241040014,16.7045,169.63,169.53,23.9117]
[1641241040214,17.2045,169.63,169.53,23.9117]
[1641241040417,16.7045,169.63,169.53,23.9117]
[1641241040614,17.2045,169.63,169.54,2.79130269]
[1641241040814,9.6055,169.63,169.54,2.79130269]
[1641241041014,9.6055,169.63,169.54,3.05130269]
[1641241041214,9.6055,169.63,169.54,2.79130269]
[1641241042319,8.8467,169.61,169.54,2.79130269]
[1641241042519,8.8467,169.61,169.54,3.05130269]
[1641241042925,8.8467,169.61,169.52,8.4]
[1641241043123,9.6067,169.61,169.51,72.9901]
[1641241043721,8.8483,169.58,169.51,72.9901]
[1641241043952,8.8483,169.58,169.52,2.4451902]
[1641241044145,24.1001,169.6,169.52,2.4451902]
[1641241044356,1.2297,169.6,169.52,2.7051902]
[1641241046047,1.2297,169.6,169.52,11.5519902]
[1641241047952,10.3371,169.6,169.52,2.4451902]
[1641241048154,10.0771,169.6,169.52,2.4451902]
[1641241049451,10.0771,169.6,169.52,2.7051902]
[1641241050052,24.1521,169.64,169.53,8.4]
[1641241050456,24.1521,169.64,169.53,8.66]
[1641241050854,24.1521,169.64,169.53,17.5059]
[1641241051453,10.1421,169.63,169.53,17.5059]
[1641241051652,10.1421,169.63,169.53,9.1059]
[1641241051852,10.1421,169.63,169.53,17.5059]
[1641241052052,23.7831,169.62,169.53,17.5059]
[1641241053655,32.6296,169.62,169.53,17.5059]
[1641241060059,32.6296,169.62,169.53,8.66]
[1641241060662,32.8896,169.62,169.53,8.66]
[1641241060963,33.3896,169.62,169.53,8.66]
[1641241061366,1.3596,169.61,169.53,8.66]
[1641241061565,8.8476,169.6,169.53,8.66]
[1641241061762,31.6228,169.6,169.53,8.66]
[1641241062265,31.6228,169.6,169.53,0.26]
[1641241062464,31.6228,169.6,169.52,26.5815902]
[1641241062965,31.6228,169.6,169.52,2.7051902]
[1641241064766,22.7752,169.6,169.52,11.1051902]
[1641241066067,22.7752,169.6,169.52,19.9514902]
[1641241067573,22.7752,169.6,169.52,19.6914902]
[1641241067772,22.7752,169.6,169.52,10.8451902]
[1641241068976,22.7752,169.6,169.52,19.6914902]
[1641241069577,22.7752,169.6,169.52,19.9514902]
[1641241070477,22.7752,169.6,169.52,11.1051902]
[1641241072678,22.7752,169.6,169.52,19.9515902]
[1641241075290,22.7752,169.6,169.52,17.5064]
[1641241075794,1.3596,169.61,169.52,17.5064]
[1641241076393,1.3596,169.61,169.52,20.53875412]
[1641241076796,1.3596,169.61,169.52,20.03875412]
[1641241077098,10.2063,169.61,169.52,8.16]
[1641241077629,10.9663,169.61,169.52,8.16]
[1641241078028,10.9663,169.61,169.52,7.9]
[1641241078225,10.9663,169.61,169.49,29.11991667]
[1641241078423,22.9693,169.6,169.49,29.11991667]
[1641241078624,8.8489,169.57,169.49,29.11991667]
[1641241078931,8.8489,169.57,169.49,27.83401667]
[1641241080124,8.8489,169.57,169.49,28.09401667]
[1641241080729,1.357,169.59,169.49,27.83401667]
[1641241081129,1.617,169.59,169.49,27.83401667]
[1641241081628,1.617,169.59,169.49,2.93321667]
[1641241081831,2.117,169.59,169.49,2.93321667]
[1641241082632,8.8493,169.56,169.49,2.93321667]
[1641241082832,2.117,169.59,169.49,3.19321667]
[1641241083233,1.617,169.59,169.49,3.19321667]
[1641241083436,2.117,169.59,169.49,3.19321667]
[1641241083634,8.8486,169.58,169.49,3.19321667]
[1641241084036,23.5727,169.57,169.49,3.19321667]